bitfinex/quotes_BTCUSD_20250328
["timestamp","ask_amount","ask_price","bid_price","bid_amount"]
[1743203081667,0.0100009,84689.0,84688.0,0.794968]
[1743203081972,0.0100009,84689.0,84688.0,0.717668]
[1743203082176,0.0100009,84689.0,84688.0,0.671468]
[1743203084759,0.0103309,84689.0,84688.0,0.671468]
[1743203096431,0.0103309,84689.0,84688.0,0.6718058]
[1743203109246,0.0104998,84689.0,84688.0,0.6718058]
[1743203112428,0.0104998,84689.0,84688.0,0.2474978]
[1743203112603,0.0104998,84689.0,84688.0,0.0113378]
[1743203112805,0.02094048,84689.0,84688.0,0.0113378]
[1743203113205,0.03274748,84689.0,84688.0,0.0113378]
[1743203113417,0.03274748,84689.0,84688.0,0.0053378]
[1743203113812,0.05655795,84689.0,84688.0,0.0093378]
[1743203114214,0.04611727,84689.0,84688.0,0.0053378]
[1743203114830,0.04611727,84689.0,84688.0,0.0023378]
[1743203115318,0.04611727,84689.0,84688.0,0.0053378]
[1743203115549,0.04611727,84689.0,84688.0,0.0023378]
[1743203115857,0.04611727,84689.0,84688.0,0.0043378]
[1743203116061,0.1345073,84689.0,84688.0,0.0043378]
[1743203116366,0.0104998,84689.0,84688.0,0.0043378]
[1743203116587,0.0104998,84689.0,84688.0,0.0161458]
[1743203116956,0.0104998,84689.0,84688.0,0.01691239]
[1743203117589,0.0104998,84689.0,84688.0,0.01491239]
[1743203117968,0.0104998,84689.0,84688.0,0.01791239]
[1743203118172,0.0104998,84689.0,84688.0,0.01591239]
[1743203118377,0.0104998,84689.0,84688.0,0.0121458]
[1743203118628,0.0104998,84689.0,84688.0,0.31914564]
[1743203120450,0.0104998,84689.0,84688.0,0.34265891]
[1743203121857,0.0104998,84689.0,84688.0,0.6003574]
[1743203122984,0.0104998,84689.0,84688.0,1.0128574]
[1743203123357,0.0104998,84689.0,84688.0,1.0088574]
[1743203123557,0.0104998,84689.0,84688.0,0.99134413]
[1743203123785,0.0104998,84689.0,84688.0,0.98834413]
[1743203123981,0.0104998,84689.0,84688.0,0.99434413]
[1743203124186,0.0104998,84689.0,84688.0,0.98234413]
[1743203124563,0.0104998,84689.0,84688.0,0.99434413]
[1743203124933,0.0104998,84689.0,84688.0,0.85354564]
[1743203125083,0.0104998,84689.0,84688.0,0.85854564]
[1743203125288,0.0104998,84689.0,84688.0,0.86454564]
[1743203126717,0.0104998,84689.0,84688.0,0.73564564]
[1743203131425,0.0104998,84689.0,84688.0,0.74940732]
[1743203133662,0.0104998,84689.0,84688.0,0.74340732]
[1743203133858,0.0104998,84689.0,84688.0,0.74140732]
[1743203134296,0.0104998,84689.0,84688.0,0.74440732]
[1743203134733,0.0104998,84689.0,84688.0,0.33190732]
[1743203139807,0.0104998,84689.0,84688.0,0.44616496]
[1743203140060,0.0104998,84689.0,84688.0,0.54030581]
[1743203140544,0.0104998,84689.0,84688.0,0.95280581]
[1743203140750,8e-07,84689.0,84688.0,1.30210581]
[1743203140980,8e-07,84689.0,84688.0,1.29610581]
[1743203141206,8e-07,84689.0,84688.0,1.30010581]
[1743203141432,8e-07,84689.0,84688.0,1.17120581]
[1743203141848,8e-07,84689.0,84688.0,1.29910581]
[1743203142322,8e-07,84689.0,84688.0,1.18184817]
[1743203142568,8e-07,84689.0,84688.0,1.16730732]
[1743203142812,8e-07,84689.0,84688.0,0.73840732]
[1743203143049,8e-07,84689.0,84688.0,0.74340732]
[1743203143697,8e-07,84689.0,84688.0,0.74740732]
[1743203145221,8e-07,84689.0,84688.0,0.32309932]
[1743203148071,8e-07,84689.0,84688.0,0.31809932]
[1743203148470,8e-07,84689.0,84688.0,0.31409932]
[1743203148712,8e-07,84689.0,84688.0,0.31609932]
[1743203149585,8e-07,84689.0,84688.0,0.31809932]
[1743203150777,8e-07,84689.0,84688.0,0.32990732]
[1743203153213,8e-07,84689.0,84688.0,0.37730732]
[1743203154470,8e-07,84689.0,84688.0,0.37330732]
[1743203154684,8e-07,84689.0,84688.0,0.31409932]
[1743203154899,8e-07,84689.0,84688.0,0.31709932]
[1743203155234,8e-07,84689.0,84688.0,0.32890732]
[1743203155434,8e-07,84689.0,84688.0,0.33190732]
[1743203155876,8e-07,84689.0,84688.0,0.40840732]
[1743203156040,8e-07,84689.0,84688.0,0.40540732]
[1743203156441,8e-07,84689.0,84688.0,0.40640732]
[1743203156847,8e-07,84689.0,84688.0,0.40340732]
[1743203157295,8e-07,84689.0,84688.0,0.40440732]
[1743203164377,8e-07,84689.0,84688.0,0.32790732]
[1743203165208,8e-07,84689.0,84688.0,0.31609932]
[1743203168598,0.0118078,84689.0,84688.0,0.31609932]
[1743203168798,8e-07,84689.0,84688.0,0.31609932]
[1743203170837,8e-07,84689.0,84688.0,0.32790732]
[1743203179463,8e-07,84689.0,84688.0,0.45230732]
[1743203180638,8e-07,84689.0,84688.0,1.29260581]
[1743203180832,8e-07,84689.0,84688.0,1.29460581]
[1743203182191,8e-07,84689.0,84688.0,1.29360581]
[1743203182618,8e-07,84689.0,84688.0,1.29660581]
[1743203185232,8e-07,84689.0,84688.0,1.29360581]
[1743203185651,8e-07,84689.0,84688.0,1.29560581]
[1743203185989,8e-07,84689.0,84688.0,1.29860581]
[1743203186226,8e-07,84689.0,84688.0,1.30333881]
[1743203190373,8e-07,84689.0,84688.0,1.86565881]
[1743203196032,8e-07,84689.0,84688.0,1.30772732]
[1743203199970,8e-07,84689.0,84688.0,1.29591932]
[1743203201443,0.2479658,84689.0,84688.0,0.88341932]
[1743203201840,8e-07,84689.0,84688.0,0.88341932]
[1743203202043,8e-07,84689.0,84688.0,0.87941932]
[1743203203095,0.0118078,84689.0,84688.0,0.87941932]
[1743203203304,0.0118078,84689.0,84688.0,0.88241932]
[1743203205343,8e-07,84689.0,84688.0,0.88241932]
[1743203205539,8e-07,84689.0,84688.0,1.11857932]
[1743203205745,8e-07,84689.0,84688.0,0.88241932]
[1743203206281,0.0118078,84689.0,84688.0,0.88241932]
[1743203207387,8e-07,84689.0,84688.0,0.88241932]
[1743203208041,0.0118078,84689.0,84688.0,0.88241932]
[1743203208402,0.09336052,84689.0,84688.0,0.88241932]
[1743203209016,0.09336052,84689.0,84688.0,0.87941932]
[1743203209219,0.09315988,84689.0,84688.0,0.31709932]
[1743203209422,0.09315988,84689.0,84688.0,0.31509932]
[1743203209614,0.0902078,84689.0,84688.0,0.31509932]
[1743203210166,0.0902078,84689.0,84688.0,0.31409932]
[1743203210415,0.61140052,84689.0,84688.0,0.31409932]
[1743203211023,0.61140052,84689.0,84685.0,6e-07]
[1743203211024,0.011808,84686.0,84685.0,6e-07]
[1743203211371,0.43866084,84686.0,84685.0,6e-07]
[1743203211551,0.440708,84686.0,84685.0,6e-07]
[1743203211755,0.316808,84684.0,84683.0,4e-07]
[1743203211952,0.57996564,84684.0,84683.0,4e-07]
[1743203212179,0.73196564,84684.0,84683.0,4e-07]
[1743203212355,0.552009,84681.0,84680.0,0.0003378]
[1743203213718,0.553009,84681.0,84680.0,0.0003378]
[1743203214925,0.559009,84681.0,84680.0,0.0003378]
[1743203215171,0.67326664,84681.0,84680.0,0.0003378]
[1743203217016,0.6972069,84681.0,84680.0,0.0003378]
[1743203219321,0.8295269,84681.0,84680.0,0.0003378]
[1743203220552,0.8395269,84681.0,84680.0,0.0003378]
[1743203220975,0.8395269,84681.0,84680.0,8e-07]
[1743203220976,0.95792775,84681.0,84680.0,8e-07]
[1743203221169,0.011814,84645.0,84637.0,0.248117]
[1743203221482,1.42907188,84645.0,84644.0,0.00971944]
[1743203221897,1.42907188,84645.0,84644.0,0.00046083]
[1743203222441,1.43007188,84645.0,84644.0,0.00046083]
[1743203223051,1.43107188,84645.0,84644.0,0.00046083]
[1743203223248,1.53152811,84645.0,84644.0,0.00046083]
[1743203223934,1.53252811,84645.0,84644.0,0.00046083]
[1743203224129,1.53152811,84645.0,84644.0,0.00046083]
[1743203224480,1.53252811,84645.0,84644.0,0.00046083]
[1743203228573,1.18297788,84645.0,84644.0,0.00046083]
[1743203228775,1.43107188,84645.0,84644.0,0.00046083]
[1743203232579,1.56419188,84645.0,84644.0,0.00046083]
[1743203236133,2.01193273,84645.0,84644.0,0.00012303]
[1743203236354,2.01193273,84645.0,84644.0,0.00046103]
[1743203236564,2.56859037,84645.0,84644.0,0.00046103]
[1743203237165,2.63619243,84645.0,84644.0,0.00046103]
[1743203237365,2.63419243,84645.0,84644.0,0.00046103]
[1743203237560,2.56659037,84645.0,84644.0,0.00046103]
[1743203237780,2.57259037,84645.0,84644.0,0.00046103]
[1743203238161,2.56959037,84645.0,84644.0,0.00046103]
[1743203238530,2.56004952,84645.0,84644.0,0.00046103]
[1743203238921,2.55704952,84645.0,84644.0,0.00046103]
[1743203239124,2.56204952,84645.0,84644.0,0.00046103]
[1743203239684,2.58059209,84645.0,84644.0,0.00046103]
[1743203241040,2.44747209,84645.0,84644.0,0.00046103]
[1743203241245,2.58063209,84645.0,84644.0,0.00046103]
[1743203241563,2.55563209,84645.0,84644.0,0.00046103]
[1743203241895,2.58063209,84645.0,84644.0,0.00046103]
[1743203242452,2.55563209,84645.0,84644.0,0.00046103]
[1743203245326,2.5898827,84645.0,84644.0,0.00046103]
[1743203245564,2.5898427,84645.0,84644.0,0.00046103]
[1743203246037,2.55559209,84645.0,84644.0,0.00046103]
[1743203248253,2.42247209,84645.0,84644.0,0.00046103]
[1743203248479,2.30838345,84645.0,84644.0,0.00046103]
[1743203248710,2.30834345,84645.0,84644.0,0.00046103]
[1743203251041,0.648141,84629.0,84628.0,0.0003378]
[1743203251244,2.16079652,84629.0,84628.0,0.00077857]
[1743203252301,2.22839858,84629.0,84628.0,0.00077857]
[1743203252471,2.23339858,84629.0,84628.0,0.00077857]
[1743203253281,2.256977,84629.0,84628.0,0.00077857]
[1743203253483,2.261977,84629.0,84628.0,0.00077857]
[1743203254330,2.11507494,84629.0,84628.0,0.00077857]
[1743203258109,1.98195494,84629.0,84628.0,0.00077857]
[1743203258339,2.11543494,84629.0,84628.0,0.00077857]
[1743203260576,2.11543494,84629.0,84628.0,0.00057977]
[1743203262111,1.98195494,84629.0,84628.0,0.00057977]
[1743203262321,2.11539494,84629.0,84628.0,0.00057977]
[1743203262670,2.11535494,84629.0,84628.0,0.00057977]
[1743203263506,2.11035494,84629.0,84628.0,0.00057977]
[1743203263683,2.10535494,84629.0,84628.0,0.00057977]
[1743203263878,2.11035494,84629.0,84628.0,0.00057977]
[1743203264119,1.98195494,84629.0,84628.0,0.00057977]
[1743203264263,2.11031494,84629.0,84628.0,0.00057977]
[1743203264443,1.97695494,84629.0,84628.0,0.00057977]
[1743203265002,2.11047494,84629.0,84628.0,0.00057977]
[1743203265209,1.8626973,84629.0,84628.0,0.00057977]
[1743203265634,1.9962573,84629.0,84628.0,0.00057977]
[1743203268906,1.8962573,84629.0,84628.0,0.00057977]
[1743203272099,1.8964263,84629.0,84628.0,0.00057977]
[1743203274671,1.7628663,84629.0,84628.0,0.00057977]
[1743203274885,2.01052394,84629.0,84628.0,0.00057977]
[1743203281290,0.82954606,84629.0,84628.0,0.00057977]
[1743203283757,0.83454606,84629.0,84628.0,0.00057977]
[1743203283958,0.83454606,84629.0,84628.0,7.7e-07]
[1743203285177,0.85954606,84629.0,84628.0,7.7e-07]
[1743203286358,0.87408691,84629.0,84628.0,7.7e-07]
[1743203286563,0.74068691,84629.0,84628.0,7.7e-07]
[1743203286715,0.87392691,84629.0,84628.0,7.7e-07]
[1743203288174,0.88747285,84629.0,84628.0,7.7e-07]
[1743203288374,0.89247285,84629.0,84628.0,7.7e-07]
[1743203288569,0.97417285,84629.0,84628.0,7.7e-07]
[1743203288729,0.96917285,84629.0,84628.0,7.7e-07]
[1743203289129,0.95562691,84629.0,84628.0,7.7e-07]
[1743203289752,0.95062691,84629.0,84628.0,7.7e-07]
[1743203289954,0.98987752,84629.0,84628.0,7.7e-07]
[1743203290107,0.98487752,84629.0,84628.0,7.7e-07]
[1743203291326,0.95062691,84629.0,84628.0,7.7e-07]
[1743203291754,0.95562691,84629.0,84628.0,7.7e-07]
[1743203292337,0.95554691,84629.0,84628.0,7.7e-07]
[1743203293512,1.18754691,84629.0,84628.0,7.7e-07]
[1743203293713,1.20609302,84629.0,84628.0,7.7e-07]
[1743203294494,0.97409302,84629.0,84628.0,7.7e-07]
[1743203297118,0.653173,84618.0,84614.0,0.00108527]
[1743203297330,1.83415088,84618.0,84617.0,0.00039202]
[1743203298345,1.83915088,84618.0,84617.0,0.00039202]
[1743203299914,0.305,84614.0,84613.0,8.9e-07]
[1743203300120,0.56407564,84614.0,84613.0,8.9e-07]
[1743203301176,0.58261649,84614.0,84613.0,8.9e-07]
[1743203301412,0.58761649,84614.0,84613.0,8.9e-07]
[1743203301853,0.58261649,84614.0,84613.0,8.9e-07]
[1743203302473,0.57861649,84614.0,84613.0,8.9e-07]
[1743203302825,0.33135885,84612.0,84611.0,0.00190149]
[1743203303028,0.44111714,84612.0,84611.0,0.00190149]
[1743203305054,0.44611714,84612.0,84611.0,0.00190149]
[1743203306300,0.44611714,84612.0,84603.0,0.0003378]
[1743203306301,0.353214,84604.0,84603.0,2.9e-07]
[1743203306479,0.353214,84604.0,84603.0,5.5e-07]
[1743203306480,1.83419188,84604.0,84603.0,5.5e-07]
[1743203306688,0.3,84596.0,84595.0,5.5e-07]
[1743203306897,0.4,84594.0,84591.0,5.5e-07]
[1743203307118,0.011821,84592.0,84591.0,5.5e-07]
[1743203307538,0.01477722,84592.0,84591.0,5.5e-07]
[1743203308419,0.02692408,84592.0,84591.0,5.5e-07]
[1743203308832,0.548278,84582.0,84581.0,0.002]
[1743203309054,0.77530256,84582.0,84581.0,0.002]
[1743203309269,0.78409886,84582.0,84581.0,0.002]
[1743203309466,0.248322,84567.0,84559.0,0.000338]
[1743203309682,1.56285988,84567.0,84566.0,0.00213228]
[1743203309880,1.67711752,84567.0,84566.0,0.00213228]
[1743203310135,1.67711752,84567.0,84566.0,0.04723228]
[1743203311842,1.67711752,84567.0,84566.0,0.12553228]
[1743203312360,1.18097788,84567.0,84566.0,0.12553228]
[1743203312564,1.32656188,84567.0,84566.0,0.12553228]
[1743203312777,1.42929988,84567.0,84566.0,0.13441994]
[1743203313232,1.42929988,84567.0,84566.0,0.12553228]
[1743203316094,1.42929988,84567.0,84566.0,0.04723228]
[1743203316257,1.64355752,84567.0,84566.0,0.00213228]
[1743203317528,1.64555752,84567.0,84566.0,0.00213228]
[1743203317729,1.94555752,84567.0,84566.0,0.00213228]
[1743203317950,1.94655752,84567.0,84566.0,0.00213228]
[1743203318326,1.94955752,84567.0,84566.0,0.00213228]
[1743203318753,1.94655752,84567.0,84566.0,0.00213228]
[1743203318955,1.94355752,84567.0,84566.0,0.00213228]
[1743203319353,1.94855752,84567.0,84566.0,0.00213228]
[1743203320519,1.95355752,84567.0,84566.0,2.8e-07]
[1743203320727,1.95855752,84567.0,84566.0,2.8e-07]
[1743203321323,1.95355752,84567.0,84566.0,2.8e-07]
[1743203321895,1.95855752,84567.0,84566.0,2.8e-07]
[1743203322302,1.94855752,84567.0,84566.0,2.8e-07]
[1743203322452,1.95355752,84567.0,84566.0,2.8e-07]
[1743203322653,1.95855752,84567.0,84566.0,2.8e-07]
[1743203323256,1.97711624,84567.0,84566.0,2.8e-07]
[1743203326755,0.553343,84560.0,84559.0,0.000338]
[1743203326914,0.56788385,84560.0,84559.0,0.000338]
[1743203328195,0.56788385,84560.0,84559.0,2.8e-07]
[1743203328795,0.57288385,84560.0,84559.0,2.8e-07]
[1743203329151,0.56788385,84560.0,84559.0,2.8e-07]
[1743203329357,0.68302965,84560.0,84559.0,2.8e-07]
[1743203329558,0.68802965,84560.0,84559.0,2.8e-07]
[1743203331175,0.69682355,84560.0,84559.0,2.8e-07]
[1743203331448,0.5671369,84560.0,84559.0,2.8e-07]
[1743203331760,0.7012169,84560.0,84559.0,2.8e-07]
[1743203332217,0.6912169,84560.0,84559.0,2.8e-07]
[1743203332624,0.7012169,84560.0,84559.0,2.8e-07]
[1743203332948,0.81547454,84560.0,84559.0,2.8e-07]
[1743203333489,0.81581274,84560.0,84559.0,2.8e-07]
[1743203333688,0.81573274,84560.0,84559.0,2.8e-07]
[1743203334304,0.81613274,84560.0,84559.0,2.8e-07]
[1743203336668,0.68173274,84560.0,84559.0,2.8e-07]
[1743203336878,0.81601274,84560.0,84559.0,2.8e-07]
[1743203337590,0.68673274,84560.0,84559.0,2.8e-07]
[1743203337804,0.82101274,84560.0,84559.0,2.8e-07]
[1743203338408,0.81601274,84560.0,84559.0,2.8e-07]
[1743203340241,0.68173274,84560.0,84559.0,2.8e-07]
[1743203340396,0.81589274,84560.0,84559.0,2.8e-07]
[1743203340599,0.68173274,84560.0,84559.0,2.8e-07]
[1743203340797,0.81589274,84560.0,84559.0,2.8e-07]
[1743203341039,0.81585274,84560.0,84559.0,2.8e-07]
[1743203348403,0.7015951,84560.0,84559.0,2.8e-07]
[1743203360224,0.8078706,84560.0,84559.0,2.8e-07]
[1743203361184,0.3619256,84560.0,84559.0,2.8e-07]
[1743203361412,0.2500537,84560.0,84557.0,0.0828]
[1743203361619,0.536523,84559.0,84557.0,0.0828]
[1743203361807,0.248349,84559.0,84558.0,0.0090083]
[1743203362003,0.248349,84559.0,84557.0,0.0828]
[1743203362212,0.011826,84558.0,84557.0,0.0828]
[1743203362866,1.29259158,84560.0,84557.0,0.0828]
[1743203363109,0.003,84559.0,84558.0,0.0828]
[1743203363528,1.29159158,84560.0,84558.0,0.0828]
[1743203363656,1.29159158,84560.0,84558.0,0.0798]
[1743203363860,1.29159158,84560.0,84559.0,0.059826]
[1743203364062,0.0003382,84560.0,84559.0,0.059826]
[1743203364381,0.0003382,84560.0,84559.0,0.056826]
[1743203365149,0.0003382,84560.0,84559.0,0.053826]
[1743203365836,0.0013382,84560.0,84559.0,0.053826]
[1743203366339,0.0023382,84560.0,84559.0,0.053826]
[1743203366815,0.0023382,84560.0,84559.0,0.130126]
[1743203368697,0.0013382,84560.0,84559.0,0.130126]
[1743203369346,0.0013382,84560.0,84559.0,0.1302951]
[1743203369594,0.0003382,84560.0,84559.0,0.1302951]
[1743203373282,0.0003382,84560.0,84559.0,0.13925491]
[1743203379437,1.18131608,84560.0,84559.0,0.13342891]
[1743203379650,1.29557372,84560.0,84559.0,0.05712891]
[1743203379855,1.29557372,84560.0,84559.0,0.06895491]
[1743203381263,1.18131608,84560.0,84559.0,0.06895491]
[1743203383121,0.0003382,84560.0,84559.0,0.14975491]
[1743203391537,0.0003382,84560.0,84559.0,0.06895491]
[1743203392822,0.0003382,84560.0,84559.0,0.05712891]
[1743203393040,0.0003382,84560.0,84559.0,0.00912891]
[1743203393241,0.05122212,84560.0,84559.0,0.00912891]
[1743203394255,0.05122212,84560.0,84559.0,0.02095491]
[1743203394439,0.0003382,84560.0,84559.0,0.02095491]
[1743203396985,0.0003382,84560.0,84559.0,0.00912891]
[1743203400196,0.0003382,84560.0,84559.0,0.02095491]
[1743203402332,0.0003382,84560.0,84559.0,0.14285491]
[1743203420289,0.0003382,84560.0,84559.0,0.14385491]
[1743203420495,0.0003382,84560.0,84559.0,0.14485491]
[1743203426972,0.0003382,84560.0,84559.0,0.16017119]
[1743203427202,0.0003382,84560.0,84559.0,0.46017119]
[1743203427428,2e-07,84560.0,84559.0,0.49623159]
[1743203427654,2e-07,84560.0,84559.0,0.45839576]
[1743203428105,2e-07,84560.0,84559.0,0.60948953]
[1743203428377,2e-07,84560.0,84559.0,0.5726534]
[1743203428600,2e-07,84560.0,84559.0,0.60201767]
[1743203428821,2e-07,84560.0,84559.0,0.5726534]
[1743203429050,2e-07,84560.0,84559.0,0.5716534]
[1743203429263,2e-07,84560.0,84559.0,0.5756534]
[1743203430003,2e-07,84560.0,84559.0,0.5786534]
[1743203430878,2e-07,84560.0,84559.0,0.9911534]
[1743203431508,2e-07,84560.0,84559.0,0.99677011]
[1743203435517,2e-07,84560.0,84559.0,0.86797162]
[1743203440302,2e-07,84560.0,84559.0,0.87819162]
[1743203441327,2e-07,84560.0,84559.0,1.44135162]
[1743203442520,2e-07,84560.0,84559.0,1.52225162]
[1743203445356,2e-07,84560.0,84559.0,1.02885162]
[1743203448684,2e-07,84560.0,84559.0,0.58490562]
[1743203448912,0.0825002,84560.0,84559.0,0.58490562]
[1743203450753,0.0943252,84560.0,84559.0,0.58490562]
[1743203450973,0.0825002,84560.0,84559.0,0.58490562]
[1743203452818,2e-07,84560.0,84559.0,0.59673162]
[1743203456127,2e-07,84560.0,84559.0,0.58490562]
[1743203456534,2e-07,84560.0,84559.0,0.59673162]
[1743203456743,2e-07,84560.0,84559.0,0.58490562]
[1743203456954,0.0118252,84560.0,84559.0,0.58490562]
[1743203457156,2e-07,84560.0,84559.0,0.58490562]
[1743203457702,2e-07,84560.0,84559.0,0.58090562]
[1743203457906,2e-07,84560.0,84559.0,0.57790562]
[1743203458128,2e-07,84560.0,84559.0,0.57990562]
[1743203458773,2e-07,84560.0,84559.0,0.58190562]
[1743203460471,2e-07,84560.0,84559.0,0.01874562]
[1743203460880,2e-07,84560.0,84559.0,0.03057162]
[1743203461789,2e-07,84560.0,84559.0,0.01874562]
[1743203463037,0.03544922,84560.0,84559.0,0.25526662]
[1743203463252,2e-07,84560.0,84559.0,0.26709262]
[1743203465259,2e-07,84560.0,84559.0,0.01874562]
[1743203466348,2e-07,84560.0,84559.0,0.03057162]
[1743203469924,2e-07,84560.0,84559.0,0.01874562]
[1743203472034,0.0543877,84560.0,84559.0,0.01874562]
[1743203472255,0.0936252,84560.0,84559.0,0.01874562]
[1743203472466,0.58650032,84560.0,84559.0,0.0041691]
[1743203472665,0.58354319,84560.0,84559.0,0.0041691]
[1743203473519,0.58354319,84560.0,84559.0,0.0021691]
[1743203473705,0.58654319,84560.0,84559.0,0.0021691]
[1743203474111,0.70080083,84560.0,84559.0,0.0021691]
[1743203474346,0.70880083,84560.0,84559.0,0.0021691]
[1743203474567,0.353367,84552.0,84543.0,0.0003382]
[1743203474783,0.783467,84552.0,84543.0,0.0003382]
[1743203474990,0.89772464,84552.0,84543.0,0.0003382]
[1743203475903,0.90072464,84552.0,84543.0,0.0003382]
[1743203476233,0.89772464,84552.0,84543.0,0.0003382]
[1743203476630,0.90072464,84552.0,84543.0,0.0003382]
[1743203477505,0.90957859,84552.0,84543.0,0.0003382]
[1743203477917,1.32697859,84552.0,84543.0,0.0003382]
[1743203478131,1.32897859,84552.0,84543.0,0.0003382]
[1743203479044,1.44724464,84552.0,84543.0,0.0003382]
[1743203480778,1.47079711,84552.0,84543.0,0.0003382]
[1743203483242,1.47579711,84552.0,84543.0,0.0003382]
[1743203485046,0.548391,84544.0,84543.0,0.0003382]
[1743203485254,1.81126888,84544.0,84543.0,0.00077944]
[1743203486112,1.94342888,84544.0,84543.0,0.00077944]
[1743203486696,1.94842888,84544.0,84543.0,0.00077944]
[1743203487303,1.95242888,84544.0,84543.0,0.00077944]
[1743203487542,2.03732225,84544.0,84543.0,0.00077944]
[1743203493468,1.73836888,84544.0,84543.0,0.00077944]
[1743203515278,0.557391,84544.0,84543.0,0.00077944]
[1743203523566,0.636091,84544.0,84543.0,0.00077944]
[1743203527254,0.641091,84544.0,84543.0,0.00077944]
[1743203530497,1.058491,84544.0,84543.0,0.00077944]
[1743203530702,1.17274864,84544.0,84543.0,0.00077944]
[1743203532316,1.19131141,84544.0,84543.0,0.00077944]
[1743203533133,1.17274864,84544.0,84543.0,0.00077944]
[1743203536475,1.19131138,84544.0,84543.0,0.00077944]
[1743203537708,1.17274864,84544.0,84543.0,0.00077944]
[1743203538946,1.18728949,84544.0,84543.0,0.00077944]
[1743203543358,1.18728949,84544.0,84543.0,4.4e-07]
[1743203543566,1.15252219,84544.0,84543.0,4.4e-07]
[1743203544602,1.16435019,84544.0,84543.0,4.4e-07]
[1743203545553,1.18435019,84544.0,84543.0,4.4e-07]
[1743203545982,1.18435019,84544.0,84543.0,3.4e-07]
[1743203546326,1.18935019,84544.0,84543.0,3.4e-07]
[1743203546535,1.17891352,84544.0,84543.0,3.4e-07]
[1743203546882,1.16535019,84544.0,84543.0,3.4e-07]
[1743203549548,1.18391347,84544.0,84543.0,3.4e-07]
[1743203549961,1.16535019,84544.0,84543.0,3.4e-07]
[1743203554449,1.21185019,84544.0,84543.0,3.4e-07]
[1743203557404,1.21218819,84544.0,84543.0,3.4e-07]
[1743203558750,1.23075157,84544.0,84543.0,3.4e-07]
[1743203559211,1.21218819,84544.0,84543.0,3.4e-07]
[1743203561883,1.2307516,84544.0,84543.0,3.4e-07]
[1743203562270,1.21218819,84544.0,84543.0,3.4e-07]
[1743203565679,1.2307516,84544.0,84543.0,3.4e-07]
[1743203573447,1.1055516,84544.0,84543.0,3.4e-07]
[1743203575132,1.2377116,84544.0,84543.0,3.4e-07]
[1743203575377,0.67675311,84544.0,84543.0,3.4e-07]
[1743203575559,0.38651311,84544.0,84543.0,3.4e-07]
[1743203575905,0.3679497,84544.0,84543.0,0.08090034]
[1743203576324,0.6679497,84544.0,84543.0,0.08090034]
[1743203579121,0.5357897,84544.0,84543.0,0.08090034]
[1743203579260,0.6679097,84544.0,84543.0,0.08090034]
[1743203595604,0.5357897,84544.0,84543.0,0.08090034]
[1743203595799,0.6679097,84544.0,84543.0,0.08090034]
[1743203596241,0.6679097,84544.0,84543.0,0.08062368]
[1743203597179,0.5357897,84544.0,84543.0,0.08062368]
[1743203597387,0.6679097,84544.0,84543.0,0.08062368]
[1743203598853,0.7320996,84544.0,84543.0,0.08062368]
[1743203599412,0.7320996,84544.0,84540.0,0.0489]
[1743203599413,0.248411,84537.0,84533.0,0.076]
[1743203599621,0.248411,84537.0,84536.0,0.00204408]
[1743203599820,0.548411,84537.0,84536.0,0.00204408]
[1743203600022,0.66266864,84537.0,84536.0,0.00204408]
[1743203601908,0.66766864,84537.0,84536.0,0.00204408]
[1743203602212,0.67166864,84537.0,84536.0,0.00204408]
[1743203603899,1.08906864,84537.0,84536.0,0.00204408]
[1743203606777,1.11270359,84537.0,84536.0,0.00204408]
[1743203607236,1.13224444,84537.0,84536.0,0.00204408]
[1743203608382,1.12824444,84537.0,84536.0,0.00204408]
[1743203608586,1.12324444,84537.0,84536.0,0.00204408]
[1743203608902,1.13224444,84537.0,84536.0,0.00204408]
[1743203611453,1.13224444,84537.0,84521.0,0.002]
[1743203611454,0.248543,84492.0,84483.0,0.079]
[1743203611678,1.86164088,84492.0,84483.0,0.079]
[1743203611896,1.86164088,84492.0,84491.0,0.00204412]
[1743203612394,1.87352493,84492.0,84491.0,0.00204412]
[1743203612596,1.98778257,84492.0,84491.0,0.00204412]
[1743203613488,1.98878257,84492.0,84491.0,0.00204412]
[1743203614633,1.98878257,84492.0,84491.0,0.00221302]
[1743203615498,2.09524345,84492.0,84491.0,0.00221302]
[1743203616384,2.10425857,84492.0,84491.0,0.00221302]
[1743203617194,1.97213857,84492.0,84491.0,0.00221302]
[1743203617411,2.10429857,84492.0,84491.0,0.00221302]
[1743203618328,2.10329857,84492.0,84491.0,0.00221302]
[1743203618758,2.10629857,84492.0,84491.0,0.00221302]
[1743203618915,2.00183769,84492.0,84491.0,0.00221302]
[1743203620588,2.02586491,84492.0,84491.0,0.00221302]
[1743203621344,2.44326491,84492.0,84491.0,0.00221302]
[1743203624758,2.1759481,84492.0,84491.0,0.00221302]
[1743203625076,2.28408088,84492.0,84491.0,0.08351302]
[1743203627279,1.86668088,84492.0,84491.0,0.08351302]
[1743203627475,1.86668088,84492.0,84491.0,0.00221302]
[1743203631438,1.73452088,84492.0,84491.0,0.00221302]
[1743203631638,1.98093852,84492.0,84491.0,0.00221302]
[1743203632160,1.97793852,84492.0,84491.0,0.00221302]
[1743203632337,1.98093852,84492.0,84491.0,0.00221302]
[1743203632737,1.98593852,84492.0,84491.0,0.00221302]
[1743203633001,1.98093852,84492.0,84491.0,0.00221302]
[1743203633388,1.98593852,84492.0,84491.0,0.00221302]
[1743203637900,1.85377852,84492.0,84491.0,0.00221302]
[1743203638305,1.98593852,84492.0,84491.0,0.00221302]
[1743203639755,1.85377852,84492.0,84491.0,0.00221302]
[1743203639960,1.98593852,84492.0,84491.0,0.00221302]
[1743203641232,1.87168088,84492.0,84491.0,0.00221302]
[1743203642012,0.690703,84492.0,84491.0,0.00221302]
[1743203642410,0.558543,84492.0,84491.0,0.00221302]
[1743203644716,0.01,84492.0,84491.0,0.00221302]
[1743203645153,0.01,84492.0,84491.0,0.05081302]
[1743203645362,0.01,84492.0,84491.0,0.06276887]
[1743203647031,0.01,84492.0,84491.0,0.15060387]
[1743203648160,0.005,84492.0,84491.0,0.15060387]
[1743203648569,0.009,84492.0,84491.0,0.15060387]
[1743203650108,0.004,84492.0,84491.0,0.15060387]
[1743203650367,0.004,84492.0,84491.0,0.15138397]
[1743203650597,0.007,84492.0,84491.0,0.15138396]
[1743203650835,0.004,84492.0,84491.0,0.15060387]
[1743203651019,0.006,84492.0,84491.0,0.15060387]
[1743203651393,0.002,84492.0,84491.0,0.15060387]
[1743203651614,0.005,84492.0,84491.0,0.15060387]
[1743203652496,0.005,84492.0,84491.0,0.15138398]
[1743203653301,0.003,84492.0,84491.0,0.15138398]
[1743203654393,0.000338,84506.0,84502.0,0.011834]
[1743203654582,0.000338,84506.0,84504.0,0.248506]
[1743203654745,0.000338,84506.0,84504.0,0.247506]
[1743203655148,0.000338,84506.0,84505.0,0.01182237]
[1743203655951,0.004338,84506.0,84505.0,0.01182237]
[1743203656361,0.000338,84506.0,84503.0,0.0827]
[1743203656567,0.003338,84506.0,84503.0,0.0827]